Cogmind - Beta 11 X7 @@@ ROGUE MODE // 2021.10.09 @ 06:41:23 Player: weirdfoe Result: Destroyed by S-27 Virus with Autogun Performance ------------- Evolutions (3) 1500 Regions Visited (7) 1400 Robots Destroyed (45) 225 Value Destroyed (1088) 1088 Prototype IDs (4) 80 Alien Tech Used (0) 0 Bonus (152) 152 TOTAL SCORE: 4445 Bonus ------- Aligned with FarCom 300 Friendly Fire -148 Cogmind --------- Core Integrity 0/700 Matter 87/300 Energy 91/100 System Corruption 6% Temperature Cool (0) Movement Core (50) Location -7/Factory Parts ------- > --- POWER (2) -------- (None) > --- PROPULSION (4) --- (None) > --- UTILITY (5) ------ (None) > --- WEAPON (2) ------- (None) > --- INVENTORY (5) ---- Improved VTOL Module Improved Heat Sink Large Storage Unit Large Matter Pod (150) Energy Filter Peak State ------------ > --- POWER ------------ Ion Engine Light Nuclear Core > --- PROPULSION ------- Aluminum Leg Carbon-fiber Leg Titanium Leg Improved Carbon-fiber Leg > --- UTILITY ---------- Improved Heat Sink High-capacity Storage Unit Terrain Scanner Improved Light Armor Plating Trap Reconfigurator > --- WEAPON ----------- Greatsword > --- INVENTORY -------- Aluminum Leg Wheel Armored Wheel Improved Heat Sink Large Storage Unit Large Matter Pod Improved Targeting Computer Energy Filter Assault Rifle Heavy Assault Rifle Slug Cannon [Rating: 42] Favorites ----------- Power Ion Engine Engine Ion Engine Power Core Light Nuclear Core Propulsion Wheel Treads Light Treads Leg Carbon-fiber Leg Wheel Wheel Flight Unit Improved VTOL Module Utility High-capacity Storage Unit Device Trap Reconfigurator Storage High-capacity Storage Unit Processor Modified TNC Protection Light Armor Plating Weapon Assault Rifle Energy Cannon Improved EM Pulse Cannon Ballistic Gun Assault Rifle Ballistic Cannon Slug Cannon Slashing Weapon Greatsword Build | -11 -10 -9 -9 -9 -8 -8 -7 ------- Run | Scr Mat Mat Min Exi Min Mat Fac Slots Evolved 6 | . . 2 . . . 2 2 Power 1 | . . . . . . . 1 Propulsion 2 | . . 2 . . . . . Utility 3 | . . . . . . 2 1 Weapon . | . . . . . . . . Parts Attached 56 | 6 4 6 3 4 . 5 28 Power 5 | 1 . 1 . . . . 3 Engine 3 | 1 . 1 . . . . 1 Core 2 | . . . . . . . 2 Reactor . | . . . . . . . . Propulsion 24 | 2 2 5 2 . . 1 12 Treads 2 | . 2 . . . . . . Leg 11 | . . 2 . . . . 9 Wheel 10 | 2 . 3 2 . . 1 2 Hover . | . . . . . . . . Flight 1 | . . . . . . . 1 Utility 15 | 1 2 . . 4 . 1 7 Device 6 | . . . . 3 . . 3 Storage 2 | 1 1 . . . . . . Processor 1 | . . . . 1 . . . Hackware . | . . . . . . . . Protection 6 | . 1 . . . . 1 4 Artifact . | . . . . . . . . Weapon 12 | 2 . . 1 . . 3 6 Energy Gun . | . . . . . . . . Energy Cannon 1 | . . . . . . . 1 Ballistic Gun 5 | 2 . . . . . 2 1 Ballistic Cannon 4 | . . . 1 . . 1 2 Launcher . | . . . . . . . . Special Weapon . | . . . . . . . . Impact Weapon . | . . . . . . . . Slashing Weapon 2 | . . . . . . . 2 Piercing Weapon . | . . . . . . . . Special Melee Weapon . | . . . . . . . . Unidentified Prototypes 4 | . . . . 3 . . 1 Parts Lost 15 | . . . . . . . 15 Power 2 | . . . . . . . 2 Propulsion 7 | . . . . . . . 7 Utility 5 | . . . . . . . 5 Weapon 1 | . . . . . . . 1 Highest Loss Streak 8 | . . . . . . . 8 Average Slot Usage (%) 87 | . 99 88 98 100 100 90 74 Engine 8 | . 14 11 11 11 11 9 4 Treads 3 | . 17 13 . . . . . Leg 8 | . . 6 . . . . 20 Wheel 20 | . 10 13 43 44 44 36 2 Device 9 | . . . . 5 11 9 18 Storage 9 | . 14 11 11 11 11 9 6 Protection 7 | . 13 11 11 5 . 9 6 Ballistic Gun 11 | . 28 22 14 11 11 6 4 Ballistic Cannon 5 | . . . 7 11 11 11 2 Naked Turns 122 | . . . . . . . 122 Heaviest Build 77 | 14 52 52 57 57 55 71 77 Greatest Support 60 | 20 40 40 42 42 42 42 60 Greatest Overweight (x) 14 | . 2 1 1 1 1 1 14 Average Overweight (x) . | . . 1 1 1 1 1 . Largest Inventory Capacity 20 | 8 20 20 20 20 20 20 20 Average Capacity 19 | 6 17 20 20 20 20 20 18 Most Carried 19 | 5 11 14 16 16 19 18 17 Average Carried 12 | 2 9 11 14 14 18 15 10 Final Capacity 20 | 8 20 20 20 20 20 20 5 Final Carried 19 | 5 10 14 14 16 19 16 5 Class Distribution -------------------- 69% | Mutant 10% | Scavenger-Mutant 9% | Skirmisher 5% | Scavenger-Assassin Dominant Class ---------------- Mutant | -10/Materials Mutant | -9/Materials Mutant | -9/Mines Mutant | -9/Exiles Mutant | -8/Mines Mutant | -8/Materials Skirmisher | -7/Factory Resources | -11 -10 -9 -9 -9 -8 -8 -7 ----------- Run | Scr Mat Mat Min Exi Min Mat Fac Matter Collected 1411 | 184 50 215 239 . 98 317 308 Remotely . | . . . . . . . . Salvage Created 1334 | . 68 215 190 . 66 225 570 Parts 87 | . 9 9 20 . 2 19 28 Haulers Intercepted . | . . . . . . . . Recyclers Shooed 2 | . 1 . 1 . . . . Parts Field Recycled . | . . . . . . . . Retrieved Matter . | . . . . . . . . Parts Self-Destructed . | . . . . . . . . Prevented . | . . . . . . . . Kills | -11 -10 -9 -9 -9 -8 -8 -7 ------- Run | Scr Mat Mat Min Exi Min Mat Fac Combat Hostiles Destroyed 30 | . 3 6 3 . . 6 12 Melee 5 | . . . . . . . 5 Guns 14 | . 3 6 3 . . 2 . Cannons 9 | . . . . . . 4 5 AOE 2 | . . . . . . . 2 Classes Destroyed 9 | . 2 2 3 . . 1 1 Worker 4 | . . . 1 . . 1 2 Builder 5 | . . . 2 . . . 3 Recycler 3 | . . . 1 . 1 . 1 Operator 1 | . . 1 . . . . . Watcher 1 | . . . . . . 1 . Swarmer 16 | . 2 3 3 . . 3 5 Grunt 7 | . 1 2 . . . 2 2 Sentry 5 | . . 1 . . . 1 3 Programmer 2 | . . . . . . . 2 Thug 1 | . . . 1 . . . . Best Kill Streak 4 | . 2 2 3 . 1 3 4 Combat Bots Only 4 | . 2 2 3 . . 3 4 Max Kills in Single Turn 2 | . 1 1 1 . 1 1 2 Gunslinging . | . . . . . . . . Exploded 1 | . . . . . . . 1 Melee 1 | . . . . . . . 1 Uniques/NPCs Destroyed . | . . . . . . . . Combat | -11 -10 -9 -9 -9 -8 -8 -7 -------- Run | Scr Mat Mat Min Exi Min Mat Fac Damage Taken 3371 | . 178 166 66 . . 318 2643 Core 825 | . 21 43 . . . 59 702 Absorbed by Shields . | . . . . . . . . Core Remaining (%) 92 | 100 91 . . . 89 89 . Volleys Fired 131 | . 15 11 21 . 3 31 50 Largest 2 | . 2 2 2 . 1 2 2 Hottest 83 | . 40 40 48 . 48 83 71 Shots Fired 201 | . 30 22 31 . 3 46 69 Gun 119 | . 30 22 20 . . 28 19 Cannon 82 | . . . 11 . 3 18 50 Launcher . | . . . . . . . . Special . | . . . . . . . . Kinetic 190 | . 30 22 31 . 3 46 58 Thermal . | . . . . . . . . Explosive . | . . . . . . . . Electromagnetic 11 | . . . . . . . 11 Robot Hit Streak 12 | . 5 12 6 . 2 8 9 Robot Miss Streak 6 | . 5 1 3 . . 4 6 Penetration Max . | . . . . . . . . Secondary Targets 1 | . 1 . . . . . . Max Gunslinging Chain 1 | . 1 . . . . . . Shots Hit Robots 130 | . 13 17 17 . 1 29 53 Core Hits 57 | . 6 11 8 . 1 11 20 Critical Kills 3 | . 1 . 2 . . . . Critical Parts Destroyed 2 | . . . . . . 1 1 Critical Strikes 8 | . 1 . 2 . . 1 4 Destroy 5 | . 1 . 2 . . 1 1 Corrupt 1 | . . . . . . . 1 Sever 2 | . . . . . . . 2 Melee Attacks 28 | . . . . . . . 28 Impact . | . . . . . . . . Slashing 28 | . . . . . . . 28 Piercing . | . . . . . . . . Sneak Attacks 2 | . . . . . . . 2 Combat Hostiles 1 | . . . . . . . 1 Follow-up Attacks . | . . . . . . . . Damage Inflicted 3726 | . 162 218 323 . 15 519 2489 Guns 1028 | . 162 218 138 . . 295 215 Cannons 1172 | . . . 185 . 15 224 748 Explosions 476 | . . . . . . . 476 Melee 1046 | . . . . . . . 1046 Ramming 4 | . . . . . . . 4 Kinetic 1971 | . 162 218 323 . 15 519 734 Thermal 476 | . . . . . . . 476 Explosive . | . . . . . . . . Electromagnetic 229 | . . . . . . . 229 Impact . | . . . . . . . . Slashing 1046 | . . . . . . . 1046 Piercing . | . . . . . . . . Highest Corruption 6 | . . . . . . . 6 Average Corruption 2 | . . . . . . . 2 Corruption Purged . | . . . . . . . . Effects 7 | . . . . . . . 7 Message Errors 4 | . . . . . . . 4 Heat Flow Errors 2 | . . . . . . . 2 Energy Discharges 1 | . . . . . . . 1 Overload Shots . | . . . . . . . . Overflow Damage 498 | . . . 2 . . . 496 Projectiles 82 | . . . 2 . . . 80 Explosions 216 | . . . . . . . 216 Melee 200 | . . . . . . . 200 Knockbacks 9 | . . . . . . . 9 Impact . | . . . . . . . . Kinetic 9 | . . . . . . . 9 Secondary . | . . . . . . . . Self-Inflicted Damage 54 | . . . . . . . 54 Shots 1 | . . . . . . . 1 Rammed . | . . . . . . . . Targets Rammed 2 | . . . . . . . 2 Kicked 2 | . . . . . . . 2 Crushed . | . . . . . . . . Highest Temperature 227 | . 2 7 24 . 4 64 227 Average Temperature 24 | . 2 3 12 . 2 17 54 Received Heat Transfer 372 | . 18 69 . . . 153 132 Siege Activations . | . . . . . . . . Robots Corrupted . | . . . . . . . . Combat Hostiles . | . . . . . . . . Parts Fried 3 | . . . . . . . 3 Impact Corruptions . | . . . . . . . . Robots Melted . | . . . . . . . . Combat Hostiles . | . . . . . . . . Parts Melted . | . . . . . . . . Heat Transferred 300 | . . . . . . . 300 Parts Sabotaged . | . . . . . . . . Parts Stolen . | . . . . . . . . Parts Stripped . | . . . . . . . . Power Chain Reactions . | . . . . . . . . Missiles Intercepted . | . . . . . . . . Alert | -11 -10 -9 -9 -9 -8 -8 -7 ------- Run | Scr Mat Mat Min Exi Min Mat Fac Peak Influence 319 | . 155 280 209 . 8 131 319 Initial 109 | . . 65 109 . . 2 59 Average 106 | . 77 126 178 . 3 36 151 Maximum Alert Level 1 | . . 1 1 . . . 1 Low Security (%) 91 | 100 100 86 96 . 100 100 81 Level 1 8 | . . 13 3 . . . 18 Level 2 . | . . . . . . . . Level 3 . | . . . . . . . . Level 4 . | . . . . . . . . Level 5 . | . . . . . . . . High Security . | . . . . . . . . Max Security . | . . . . . . . . Squads Dispatched 13 | . 2 1 . . . 1 9 Investigation 2 | . . . . . . 1 1 Extermination 2 | . . . . . . . 2 Reinforcement 6 | . 2 1 . . . . 3 Assault . | . . . . . . . . Garrison 3 | . . . . . . . 3 Intercept . | . . . . . . . . Construction Impeded 1 | . . . . . . . 1 Haulers Reinforced 1 | . . . . . . . 1 Active Scanning Responses . | . . . . . . . . Cargo Convoy Interrupts . | . . . . . . . . Stealth | -11 -10 -9 -9 -9 -8 -8 -7 --------- Run | Scr Mat Mat Min Exi Min Mat Fac Distress Signals 3 | . 1 1 1 . . . . Communications Jammed . | . . . . . . . . Distress Signals . | . . . . . . . . Times Spotted 56 | . 11 11 4 . . 7 23 Peak Tracking Total 6 | . 5 3 3 . . 3 6 Tactical Retreats 9 | . 1 2 2 . . . 4 Traps | -11 -10 -9 -9 -9 -8 -8 -7 ------- Run | Scr Mat Mat Min Exi Min Mat Fac Traps Triggered 1 | . . . . . . 1 . Indirectly . | . . . . . . . . Trap Hack Attempts . | . . . . . . . . Triggered . | . . . . . . . . Disarmed . | . . . . . . . . Reprogrammed . | . . . . . . . . Reused 2 | . . . . . . . 2 Traps Reconfigurated 5 | . . . . . . . 5 Traps Extracted . | . . . . . . . . Installed . | . . . . . . . . Triggered 2 | . . . . . . . 2 Machines | -11 -10 -9 -9 -9 -8 -8 -7 ---------- Run | Scr Mat Mat Min Exi Min Mat Fac Machines Disabled 8 | . . . . . . . 8 Max in Single Turn 8 | . . . . . . . 8 Machines Sabotaged . | . . . . . . . . Garrisons Compromised . | . . . . . . . . Overloaded Fab Kills . | . . . . . . . . Fab Network Shutdowns . | . . . . . . . . Hacking | -11 -10 -9 -9 -9 -8 -8 -7 --------- Run | Scr Mat Mat Min Exi Min Mat Fac Machines Accessed 5 | . . 2 . . . 1 2 Terminals 4 | . . 2 . . . 1 1 Fabricators . | . . . . . . . . Repair Stations . | . . . . . . . . Recycling Units . | . . . . . . . . Scanalyzers . | . . . . . . . . Garrison Access 1 | . . . . . . . 1 Total Hacks 11 | . . 5 . . . 2 4 Successful 1 | . . . . . . 1 . Failed 10 | . . 5 . . . 1 4 Catastrophic 4 | . . 2 . . . 1 1 Database Lockouts . | . . . . . . . . Manual 10 | . . 5 . 1 . 2 2 Terminals 9 | . . 5 . . . 2 2 Fabricators . | . . . . . . . . Repair Stations . | . . . . . . . . Recycling Units . | . . . . . . . . Scanalyzers . | . . . . . . . . Garrison Access 2 | . . . . . . . 2 Terminal Hacks 1 | . . . . . . 1 . Zone Layout 1 | . . . . . . 1 . Fabricator Hacks . | . . . . . . . . Repair Station Hacks . | . . . . . . . . Recycling Unit Hacks . | . . . . . . . . Scanalyzer . | . . . . . . . . Garrison Access Hacks . | . . . . . . . . Unauthorized Hacks . | . . . . . . . . Terminals . | . . . . . . . . Fabricators . | . . . . . . . . Repair Stations . | . . . . . . . . Recycling Units . | . . . . . . . . Scanalyzers . | . . . . . . . . Garrison Access . | . . . . . . . . Data Cores Recovered . | . . . . . . . . Used . | . . . . . . . . Hacking Detections 5 | . . 2 . . . 1 2 Full Trace Events 2 | . . . . . . 1 1 Feedback Events . | . . . . . . . . Feedback Blocked . | . . . . . . . . Robot Schematics Acquired . | . . . . . . . . Robots Built . | . . . . . . . . Matter . | . . . . . . . . Time . | . . . . . . . . Total Robot Build Rating . | . . . . . . . . Part Schematics Acquired . | . . . . . . . . Parts Built . | . . . . . . . . Matter . | . . . . . . . . Time . | . . . . . . . . Total Part Build Rating . | . . . . . . . . Parts Repaired . | . . . . . . . . Time . | . . . . . . . . Parts Recycled . | . . . . . . . . Recycled Matter . | . . . . . . . . Retrieved Matter . | . . . . . . . . Retrieved Components . | . . . . . . . . Parts Scanalyzed . | . . . . . . . . Part Schematics Acquired . | . . . . . . . . Parts Damaged . | . . . . . . . . Bothacking | -11 -10 -9 -9 -9 -8 -8 -7 ------------ Run | Scr Mat Mat Min Exi Min Mat Fac Used RIF Installer . | . . . . . . . . Robots Hacked . | . . . . . . . . Non-combat . | . . . . . . . . Combat . | . . . . . . . . Robot Hacks Applied . | . . . . . . . . Relay Couplers Released . | . . . . . . . . Robots Rewired . | . . . . . . . . Allies Hacked . | . . . . . . . . Hacks Repelled . | . . . . . . . . Allies | -11 -10 -9 -9 -9 -8 -8 -7 -------- Run | Scr Mat Mat Min Exi Min Mat Fac Total Allies 3 | . . . 3 . . . . Largest Group 2 | . . . 2 . . . . Highest-Rated Group 41 | . . . 41 . . . . Highest-Rated Ally 31 | . . . 31 . . . . Total Orders . | . . . . . . . . Ally Attacks 4 | . . . 4 . . . . Total Damage 62 | . . . 62 . . . . Kills . | . . . . . . . . Allies Corrupted . | . . . . . . . . Allies Melted . | . . . . . . . . Intel | -11 -10 -9 -9 -9 -8 -8 -7 ------- Run | Scr Mat Mat Min Exi Min Mat Fac Robot Analysis Total . | . . . . . . . . Derelict Logs Recovered . | . . . . . . . . Drone Launches . | . . . . . . . . Drone Recoveries . | . . . . . . . . Exploration | -11 -10 -9 -9 -9 -8 -8 -7 ------------- Run | Scr Mat Mat Min Exi Min Mat Fac Turns Passed 3466 | 55 359 396 349 233 303 559 1212 Spaces Moved 1939 | 52 185 219 292 231 305 196 459 Core 211 | 1 . . . . . . 210 Treads 157 | . 76 81 . . . . . Legs 169 | . . . . . . . 169 Wheels 1402 | 51 109 138 292 231 305 196 80 Hover . | . . . . . . . . Flight . | . . . . . . . . Fastest Speed 50 | 50 80 98 97 97 97 97 50 Average Speed 114 | 79 161 157 97 97 97 97 117 Slowest Speed 750 | 80 260 260 98 97 97 97 750 Overloaded Moves . | . . . . . . . . Propulsion Burnouts . | . . . . . . . . Robots Hopped . | . . . . . . . . Cave-ins Triggered . | . . . . . . . . Exploration Rate (%) 35 | 4 39 29 34 61 79 17 18 Regions Visited 7 Branch Regions 3 Pre-discovered Areas . | . . . . . . . . Known Exits Taken . | . . . . . . . . Unknown Exits Taken 7 | 1 1 1 1 1 1 1 . Scrap Searched 2 | . . . 1 . 1 . . Spaces Dug 3 | . . . . . 3 . . Terrain Destroyed 55 | . . . 4 . 3 9 39 Melee . | . . . . . . . . Projectile 28 | . . . 4 . 3 9 12 AOE 27 | . . . . . . . 27 Terrain Rammed . | . . . . . . . . Walls Destroyed . | . . . . . . . . Machines Disabled . | . . . . . . . . Actions | -11 -10 -9 -9 -9 -8 -8 -7 --------- Run | Scr Mat Mat Min Exi Min Mat Fac Total 2936 | 62 217 249 327 239 309 520 1013 Wait 712 | . 6 4 5 . . 281 416 Move 1932 | 51 184 218 291 230 304 195 459 Hop . | . . . . . . . . Pick Up 26 | 5 5 5 2 1 2 2 4 Fast Attach 20 | 6 1 . 2 4 . 1 6 Attach 27 | . 2 5 . . . 2 18 Detach 20 | . 2 4 1 1 . 1 11 Swap 9 | . 1 1 1 . . 2 4 Drop 29 | . 1 1 4 3 . 5 15 Fire 131 | . 15 11 21 . 3 31 50 Melee 28 | . . . . . . . 28 Ram . | . . . . . . . . Kick 2 | . . . . . . . 2 Crush . | . . . . . . . . Escape Stasis . | . . . . . . . . Rewire . | . . . . . . . . Trap . | . . . . . . . . Miscellaneous . | . . . . . . . . Route ------- -11/Scrapyard -10/Materials -9/Materials -9/Mines -9/Exiles -8/Mines -8/Materials -7/Factory History --------- Turn | Location | Event 13 | -11/Scrapyard | Discovered new exit (range 13) 56 | -11/Scrapyard | Entered Materials 301 | -10/Materials | Build established: Mutant 376 | -10/Materials | Discovered new exit (range 16) 415 | -10/Materials | Entered another Materials area 415 | -9/Materials | Evolved 2 slots: Propulsion x2 803 | -9/Materials | Discovered new exit (range 9) 811 | -9/Materials | Entered Mines 879 | -9/Mines | Escorted by a lone wolf Derelict 904 | -9/Mines | Deemed a non-threat by the Exiles lab entrance 905 | -9/Mines | Discovered new exit (range 5) 932 | -9/Mines | A weapon hastily lodged in a ceiling crevice suddenly fell to the ground 1160 | -9/Mines | Entered Exiles 1184 | -9/Exiles | Met 8R-AWN 1202 | -9/Exiles | Met EX-HEX 1230 | -9/Exiles | Met EX-BIN 1242 | -9/Exiles | Aligned with FarCom system 1243 | -9/Exiles | Given EX-Vault access code 1268 | -9/Exiles | Opened EX-Vault 1272 | -9/Exiles | Found Prototype Device 1272 | -9/Exiles | Identified Trap Reconfigurator 1276 | -9/Exiles | Found Prototype Device 1276 | -9/Exiles | Identified Chronowheel 1276 | -9/Exiles | Activated Chronowheel 1278 | -9/Exiles | Found Prototype Processor 1278 | -9/Exiles | Identified Modified TNC 1303 | -9/Exiles | Warned to stay clear of 0b10 Research branches 1316 | -9/Exiles | Exiles lab attacked by MAIN.C 1385 | -9/Exiles | Discovered new exit (range 10) 1393 | -9/Exiles | Left Exiles lab with Trap Reconfigurator 1393 | -9/Exiles | Entered Mines 1689 | -8/Mines | Discovered new exit (range 9) 1696 | -8/Mines | Entered Materials 1696 | -8/Materials | Evolved 2 slots: Utility x2 2240 | -8/Materials | Discovered new exit (range 10) 2255 | -8/Materials | Entered Factory 2255 | -7/Factory | Evolved 2 slots: Power x1, Utility x1 2503 | -7/Factory | Garrison activated, responded to threat 2578 | -7/Factory | Build established: Scavenger-Mutant 2820 | -7/Factory | Lost 4 parts (1p3n) 3139 | -7/Factory | Build established: Skirmisher 3345 | -7/Factory | Core integrity fell below 50% 3372 | -7/Factory | Lost 8 parts (3n4u1w) 3454 | -7/Factory | Core integrity fell below 20% 3467 | -7/Factory | Destroyed by S-27 Virus with Autogun Last Messages --------------- 03347_ U-05 Engineer lays Concrete. 03348_ T-07 Excavator is excavating. 03349_ U-05 Engineer lays Concrete. 03352_ T-07 Excavator is excavating. 03365_ ALERT: Hostiles spotted, dispatching reinforcements to Terminal F018. 03393_ System corrupted: Heat flow error (+229). 03415_ HNYG %4%L=BBD R9V5S4|6RX>QPWDQ 03418_ Dropped Imp. Targeting Computer. 03418_ Acquired Prototype Flight Unit. 03434_ R-06 Scavenger collects Imp. Targeting Computer. 03435_ System corrupted: Energy discharge (-24). 03436_ Drone sends a signal. 03455_ Slug penetrates Wall. 03457_ System corrupted: Heat flow error (+261). 03458_ K-01 Serf cleans the Fusion Modulator. 03462_ Acquired Mic. Nuclear Core. 03464_ Identified Imp. VTOL Module. 03465_ K-01 Serf cleans the Fusion Modulator. 03465_ Dropped Mic. Nuclear Core. Map ----- +----------------------------------------------------+ | # + ! ? | | ####### # ######## #?????? | | ??????# # #??????# ## #?????? | | ??????# ########/##########?# #??#######???? | | ??????# #?# #?? #???? | | ??????# #?# #? #???? | | ??????# #?# #? #???? | | ??????# ? #?# # #???? | | ??????# ???? ### # #???? | | ??????# #????????#p Y + #???? | | ??????? ?????????/ # #???? | | ????????? ?????????# ##### # #???? | | ?????????????????????# #???##########? #???? | | ?????????????????????# #??????????????########???? | | ?????????????????????# #?????????????????????????? | | ????????????????????##+#######???????????????????? | | ????????????????????# #???????????????????? | | ????????????????????# """ #???????????????????? | | ????????????????????# """ss #???????????????????? | | ????????????????????# k""" #???????????????????? | | ????????????????????# s #???????????????????? | | ????????????????????# """ #???????????????????? | | ????????????????????# """ * #???????????????????? | | ????????????????????# """ #???????????????????? | | ????????????????????# !#???????????????????? | | ????????????????????#####@####???????????????????? | | ??????????????????????? t ?????????????????????? | | ????????????????????? ???????????????????? | | ??????????????????? ?????????????????? | | ????????????????? ???????????????? | | ??????????????? u ?????????????? | | ????????????? ""############+####????????????? | | ????????????"""" ""?????????????????????????????? | | ??????????????"" T??????????????????????????????? | | ?????????????????????????????????????????????????? | | ?????????????????????????????????????????????????? | | ?????????????????????????????????????????????????? | | ?????????????????????????????????????????????????? | | ?????????????????????????????????????????????????? | | ?????????????????????????????????????????????????? | | ?????????????????????????????????????????????????? | | ?????????????????????????????????????????????????? | | ?????????????????????????????????????????????????? | | ?????????????????????????????????????????????????? | | ?????????????????????????????????????????????????? | | ?????????????????????????????????????????????????? | | ?????????????????????????????????????????????????? | | ?????????????????????????????????????????????????? | | ?????????????????????????????????????????????????? | | ?????????????????????????????????????????????????? | +----------------------------------------------------+ Best States ------------- Heat Dissipation 48 Energy Generation 19 Energy Capacity 400 Matter Stores 300 Matter Capacity 300 Sight Range 16 Terrain Scan Range 14 Terrain Scan Density 10 Armor Coverage 600 Evasion (%) 55 Recoil Reduction 2 Item Schematics ----------------- None Robot Schematics ------------------ None Fabricated ------------ Nothing Alien Tech Used ----------------- None Achievements -------------- None Challenges ------------ None Game ------ Seed ComponentControlFlakker Manual? 0 Play Time 00:35:16 Cumulative 31.2 hours Start 2021.10.09 @ 06:03:40 End 2021.10.09 @ 06:41:23 Sessions 1 Manual Loads 0 Difficulty Rogue Special Mode None Game No. 91 Rogue 91 Adventurer 0 Explorer 0 Win Type - Total 0 Types 0/0/0/0/0/0/0/0/0 Lore% 29 Gallery% 36 Achievement% 25 Wizard Run 0 Options --------- ASCII 0 Keyboard 0 Movement Numpad Keybinds 0 Fullscreen 2 Font 18/TerminusBold Map View 76x50 Tactical HUD 1 Map Filters NONE Filters NONE Steam 1 RUN: ec1a83dd-2154-4732-bd12-28140ceef1f9